Cogmind - Beta 14 @@@ ROGUE MODE // 2025.03.03 @ 21:27:58 Player: w0rldd3str0y3r Result: Destroyed by P-80 Master with Gamma Rifle Performance ------------- Evolutions (7) 3500 Regions Visited (23) 4600 Robots Destroyed (163) 815 Value Destroyed (6160) 6160 Prototype IDs (62) 1240 Alien Tech Used (0) 0 Bonus (2791) 2791 TOTAL SCORE: 19106 Bonus ------- High Alert Combat Kills 858 Aligned with FarCom 300 Met Imprinter 300 Met Zhirov 300 Met Warlord at Base 500 MAIN.C Attacked Warlord 500 Warlord Defense Kills 978 Friendly Fire -945 Cogmind --------- Core Integrity 0/1300 Matter 75/300 Energy 24/100 System Corruption 16% Temperature Cool (0) Movement Core (100) Ox1 Location -3/Research Parts ------- > --- POWER (1) -------- (None) > --- PROPULSION (6) --- (None) > --- UTILITY (11) ----- Graphene Brace System Shield Advanced System Shield > --- WEAPON (3) ------- Advanced Plasma Rifle > --- INVENTORY (5) ---- Experimental Matter Compressor (0) Improved Force Field Peak State ------------ > --- POWER ------------ F-cell Engine > --- PROPULSION ------- VTOL Module Impulse Thruster Flying Fortress v7 > --- UTILITY ---------- High-capacity Storage Unit Advanced Weight Redist. System Enhanced Optical Array Reaction Control System Makeshift Hacking Suite Improved Hacking Suite Improved Hacking Suite Advanced Hacking Suite Advanced System Shield > --- WEAPON ----------- Matter Neutralizer Hypervelocity Gauss Cannon Gravity Flail > --- INVENTORY -------- Impulse Thruster Impulse Thruster Impulse Thruster Power Amplifier Advanced Power Amplifier Advanced Heat Sink Energy Well Advanced Weight Redist. System Long-range Terrain Scanner Advanced Terrain Scan Processor Energy Filter Phase Shifter Graphene Brace Improved Force Field Experimental System Shield Tesla Rifle Vortex Cannon Vortex Cannon Heavy Shock Bomb Launcher [Rating: 117] Favorites ----------- Power Fission Core Engine Improved Ion Engine Power Core Fission Core Reactor Light Antimatter Reactor Propulsion Armored Treads Treads Armored Treads Leg Aluminum Leg Wheel Compact Wheel Hover Unit Antigrav System Flight Unit Flying Fortress v7 Utility Large Storage Unit Device Improved Heat Sink Storage Large Storage Unit Processor Enhanced Optical Array Hackware System Shield Protection Hardened Medium Armor Plating Weapon High-powered Shock Rifle Energy Gun High-powered Shock Rifle Energy Cannon Beam Cannon Ballistic Gun Minigun Ballistic Cannon Mini Assault Cannon Launcher Heavy Rocket Launcher Impact Weapon Gravity Flail Slashing Weapon Chainsword Build | -11 -10 -10 -10 -9 -8 -7 -7 -6 -6 -6 -6 -5 -5 -5 -5 -5 -4 -4 -4 -4 -4 -3 -3 ------- Run | Yrd Mat Min Exi Min Mat Fac Sto Fac Low Low Zio Pro Fac Upp Upp War Pro Fac Upp Upp Zhi Pro Res Slots Evolved 14 | . . . . . 4 2 . 2 . . . . 2 . . . . 2 . . . . 2 Power . | . . . . . . . . . . . . . . . . . . . . . . . . Propulsion 4 | . . . . . 2 1 . 1 . . . . . . . . . . . . . . . Utility 9 | . . . . . 2 1 . . . . . . 2 . . . . 2 . . . . 2 Weapon 1 | . . . . . . . . 1 . . . . . . . . . . . . . . . Parts Attached 272 | . 8 4 2 14 21 2 76 32 2 . . 1 10 1 . 7 5 49 3 5 4 11 15 Power 20 | . 1 1 . 2 3 . 3 2 . . . . 2 . . . . 3 . 1 . 1 1 Engine 11 | . 1 . . 2 2 . 2 1 . . . . . . . . . 3 . . . . . Core 7 | . . 1 . . 1 . 1 1 . . . . 2 . . . . . . 1 . . . Reactor 2 | . . . . . . . . . . . . . . . . . . . . . . 1 1 Propulsion 63 | . 2 . . 2 6 . 20 11 1 . . 1 . . . 1 1 15 . . . 1 2 Treads 23 | . . . . . 3 . 12 5 1 . . . . . . . . 1 . . . . 1 Leg 9 | . 2 . . . 2 . 1 3 . . . . . . . . . . . . . 1 . Wheel 8 | . . . . 2 1 . 3 . . . . . . . . . . 2 . . . . . Hover 3 | . . . . . . . . 1 . . . . . . . . . 2 . . . . . Flight 20 | . . . . . . . 4 2 . . . 1 . . . 1 1 10 . . . . 1 Utility 93 | . 3 2 2 1 6 2 18 9 . . . . 5 1 . 2 1 21 2 . 4 6 8 Device 49 | . 1 1 1 . 5 . 11 3 . . . . 2 . . 1 . 13 1 . 2 2 6 Storage 4 | . . . 1 . . . . . . . . . 1 . . 1 . . . . . . 1 Processor 12 | . . 1 . . . 2 1 1 . . . . . . . . . 4 1 . . 2 . Hackware 12 | . . . . . . . . 2 . . . . 1 1 . . . 4 . . 1 2 1 Protection 16 | . 2 . . 1 1 . 6 3 . . . . 1 . . . 1 . . . 1 . . Artifact . | . . . . . . . . . . . . . . . . . . . . . . . . Weapon 96 | . 2 1 . 9 6 . 35 10 1 . . . 3 . . 4 3 10 1 4 . 3 4 Energy Gun 33 | . . . . . 4 . 12 4 . . . . 2 . . 2 1 3 . . . 2 3 Energy Cannon 15 | . 2 1 . 3 1 . 3 . . . . . . . . 1 . 2 1 1 . . . Ballistic Gun 5 | . . . . . 1 . 4 . . . . . . . . . . . . . . . . Ballistic Cannon 12 | . . . . . . . 6 2 . . . . . . . . 1 2 . 1 . . . Launcher 16 | . . . . 4 . . 5 . 1 . . . . . . 1 1 1 . 2 . . 1 Special Weapon . | . . . . . . . . . . . . . . . . . . . . . . . . Impact Weapon 2 | . . . . . . . . . . . . . . . . . . 1 . . . 1 . Slashing Weapon 13 | . . . . 2 . . 5 4 . . . . 1 . . . . 1 . . . . . Piercing Weapon . | . . . . . . . . . . . . . . . . . . . . . . . . Special Melee Weapon . | . . . . . . . . . . . . . . . . . . . . . . . . Unidentified Prototypes 16 | . . 1 . . 1 . 5 . . . . . 1 . . 1 . 3 . . 2 . 2 Corrupted Parts 1 | . . . . . . . . . . . . . . . . . . . . 1 . . . System Corruption 7 | . . . . . . . . . . . . . . . . . . . . 7 . . . Parts Lost 64 | . . . . 5 . . 19 5 . . . . . . . . 3 8 . 6 . . 18 Power 8 | . . . . 1 . . 3 . . . . . . . . . . 2 . . . . 2 Propulsion 27 | . . . . 1 . . 8 5 . . . . . . . . 1 5 . 4 . . 3 Utility 17 | . . . . 1 . . 4 . . . . . . . . . 1 1 . 2 . . 8 Weapon 12 | . . . . 2 . . 4 . . . . . . . . . 1 . . . . . 5 Highest Loss Streak 18 | . . . . 3 . . 5 5 . . . . . . . . 2 4 . 3 . . 18 To Critical Strikes . | . . . . . . . . . . . . . . . . . . . . . . . . Average Slot Usage (%) 82 | . 78 100 99 84 99 90 92 84 80 80 80 80 76 82 82 81 80 73 88 76 4 46 63 Engine 3 | . 12 12 . 3 5 7 4 1 . . . . . . . . . 4 5 2 . . . Core 3 | . . 1 14 1 3 . 2 4 6 6 6 6 5 5 5 5 5 . . 1 . . . Treads 7 | . . . . . 21 23 20 6 1 6 6 . . . . . . 1 5 2 . . 1 Leg 4 | . 21 28 28 11 3 . 2 2 4 . . . . . . . . . . . . 1 3 Wheel 3 | . . . . 16 10 7 6 . . . . . . . . . . 2 5 4 . . . Flight 6 | . . . . . . . 1 14 13 13 13 19 17 17 17 17 16 11 . . . . 1 Device 12 | . 4 10 6 8 18 15 13 10 6 6 6 6 5 11 11 11 11 13 26 22 1 9 11 Storage 5 | . . . 7 14 9 7 7 6 6 6 6 6 5 5 5 5 5 3 . . . . . Processor 6 | . . 13 13 . . 5 8 4 6 6 6 6 5 5 5 5 5 6 14 14 . 8 7 Hackware 7 | . . . . . . . . 6 13 13 13 13 17 17 17 17 16 16 5 4 1 13 17 Protection 3 | . 12 3 . 2 9 7 5 3 . . . . 4 . . . . . . . 1 5 3 Energy Gun 5 | . . . . . 5 7 6 7 13 13 13 13 5 11 11 7 5 1 5 3 . 3 4 Energy Cannon 4 | . 26 28 28 14 4 7 2 . . . . . . . . . . 1 5 2 . . . Ballistic Cannon 1 | . . . . . . . 2 5 . . . . . . . . . 2 . 1 . . . Launcher 1 | . . . . 8 . . . . 5 6 6 6 . . . 2 3 . . 1 . . . Slashing Weapon 2 | . . . . 3 5 . . 5 . . . . 4 5 5 5 5 2 5 4 . . . Peak Build Rating 117 | . 8 15 19 19 36 40 49 81 81 79 79 79 88 90 90 97 94 117 90 88 24 74 111 Average Rating 58 | . 5 11 14 15 31 39 40 68 80 79 79 78 82 89 89 91 89 90 88 76 9 58 84 On Entrance 54 | . . 8 15 19 16 36 40 49 81 79 79 79 78 88 90 89 95 85 89 88 3 24 74 Naked Turns 165 | . 18 . . . . . . . . . . . . . . . . 78 . 16 53 . . Heaviest Build 76 | . 13 19 39 39 48 48 48 55 48 48 48 48 64 64 64 68 66 76 36 36 2 32 44 Greatest Support 80 | 3 26 26 20 32 60 60 80 68 56 56 56 60 69 69 69 71 71 70 16 28 3 20 35 Greatest Overweight (x) 16 | . 3 . 1 2 3 3 9 16 . . . . . . . . 1 3 2 6 . 6 4 Average Overweight (x) . | . . . . . . 2 . . . . . . . . . . . . 1 1 . 2 1 Largest Inventory Capacity 20 | 5 5 5 15 15 15 15 15 15 15 15 15 15 20 20 20 20 20 20 5 5 5 5 5 Average Capacity 13 | 5 5 5 10 15 15 15 15 15 15 15 15 15 17 20 20 20 20 14 5 5 5 5 5 Most Carried 20 | . 5 5 10 14 15 15 15 15 15 15 15 15 20 20 20 20 20 20 5 5 5 5 5 Average Carried 12 | . 3 4 6 11 14 14 14 14 15 15 15 15 17 19 19 19 19 14 5 5 4 3 4 Final Capacity 20 | 5 5 5 15 15 15 15 15 15 15 15 15 15 20 20 20 20 20 5 5 5 5 5 5 Final Carried 20 | . 5 5 9 14 15 15 15 15 15 15 15 15 19 20 18 20 19 5 5 5 4 5 4 Class Distribution -------------------- 37% | Mutant 25% | Hacker-Mutant 19% | Scavenger-Mutant 7% | Hacker-Tank 5% | Wizard-Mutant 3% | Scavenger-Assassin Dominant Class ---------------- Mutant | -10/Materials Mutant | -10/Mines Mutant | -10/Exiles Mutant | -9/Mines Mutant | -8/Materials Mutant | -7/Factory Scavenger-Mutant | -7/Storage Hacker-Mutant | -6/Factory Hacker-Tank | -6/Lower Caves Hacker-Tank | -6/Lower Caves Hacker-Tank | -6/Zion Hacker-Tank | -5/Proximity Caves Hacker-Mutant | -5/Factory Hacker-Mutant | -5/Upper Caves Hacker-Mutant | -5/Upper Caves Hacker-Mutant | -5/Warlord Hacker-Mutant | -4/Proximity Caves Wizard-Mutant | -4/Factory Scavenger-Mutant | -4/Upper Caves Scavenger-Mutant | -4/Upper Caves Mutant | -4/Zhirov Hacker-Mutant | -3/Proximity Caves Hacker-Mutant | -3/Research Resources | -11 -10 -10 -10 -9 -8 -7 -7 -6 -6 -6 -6 -5 -5 -5 -5 -5 -4 -4 -4 -4 -4 -3 -3 ----------- Run | Yrd Mat Min Exi Min Mat Fac Sto Fac Low Low Zio Pro Fac Upp Upp War Pro Fac Upp Upp Zhi Pro Res Matter Collected 4436 | 62 209 37 . 292 403 . 1188 543 299 . 14 6 20 40 96 133 95 587 118 80 . 214 . Remotely . | . . . . . . . . . . . . . . . . . . . . . . . . Salvage Created 6184 | . 150 136 . 455 488 . 2450 365 109 66 . 25 20 . . 770 121 781 . 104 . 80 64 Parts 293 | . 10 12 . 16 30 . 99 20 2 3 . 2 3 . . 46 14 23 . 6 . 3 4 Haulers Intercepted 6 | . 1 . . . 3 . 2 . . . . . . . . . . . . . . . . Recyclers Shooed 3 | . . . . . . . . . . . . . . . . . . 2 . . . . 1 Parts Field Recycled . | . . . . . . . . . . . . . . . . . . . . . . . . Retrieved Matter . | . . . . . . . . . . . . . . . . . . . . . . . . Parts Self-Destructed 15 | . . . . . . . . . . . . . . . 3 . 7 . . 4 . 1 . Prevented 7 | . . . . . . . . . 2 1 . . . . . . 1 . . 3 . . . Kills | -11 -10 -10 -10 -9 -8 -7 -7 -6 -6 -6 -6 -5 -5 -5 -5 -5 -4 -4 -4 -4 -4 -3 -3 ------- Run | Yrd Mat Min Exi Min Mat Fac Sto Fac Low Low Zio Pro Fac Upp Upp War Pro Fac Upp Upp Zhi Pro Res Combat Hostiles Destroyed 144 | . 2 5 . 28 7 . 49 10 4 1 . 5 . . . 8 10 9 . 4 . 1 1 Melee 6 | . . . . 1 . . 2 . . . . . . . . . . 3 . . . . . Guns 30 | . . . . . 2 . 21 1 1 . . . . . . . 1 . . 2 . 1 1 Cannons 39 | . 2 5 . 2 5 . 9 9 . . . . . . . . . 5 . 2 . . . AOE 64 | . . . . 25 . . 13 . 3 1 . 5 . . . 8 9 . . . . . . Classes Destroyed 20 | . 3 1 . 4 1 . 7 . . . . . . . . 3 1 . . . . . . Worker 4 | . . . . . . . 3 . . . . . . . . . . 1 . . . . . Builder 4 | . . . . . . . 4 . . . . . . . . . . . . . . . . Hauler 6 | . 1 . . . 3 . 2 . . . . . . . . . . . . . . . . Recycler 8 | . . . . 4 . . 2 . . . . . . . . . . 2 . . . . . Mechanic 1 | . . . . . . . 1 . . . . . . . . . . . . . . . . Operator 6 | . 1 . . . 1 . 1 2 . . . . 1 . . . . . . . . . . Drone 1 | . . . . . . . . . . . . . . . . . 1 . . . . . . Watcher 5 | . . . . . . . 2 1 . . . . . . . . . 2 . . . . . Swarmer 32 | . . 3 . 7 . . 4 1 . . . 5 . . . . 9 . . 3 . . . Saboteur 1 | . . . . . . . . . . . . . . . . 1 . . . . . . . Grunt 48 | . 2 2 . 1 5 . 23 7 4 . . . . . . 3 . . . . . 1 . Brawler 4 | . . . . 1 . . 2 . . . . . . . . 1 . . . . . . . Duelist 3 | . . . . . . . 1 . . 1 . . . . . . . . . 1 . . . Protector 2 | . . . . . . . . . . . . . . . . 1 . 1 . . . . . Sentry 14 | . . . . . 2 . 12 . . . . . . . . . . . . . . . . Demolisher 2 | . . . . 2 . . . . . . . . . . . . . . . . . . . Hunter 3 | . . . . . . . 3 . . . . . . . . . . . . . . . . Programmer 16 | . . . . . . . 4 2 . . . . . . . 1 . 8 . . . . 1 Executioner 1 | . . . . . . . . . . . . . . . . 1 . . . . . . . Assembled 17 | . . . . 17 . . . . . . . . . . . . . . . . . . . Thug 2 | . . . . . . . . . . . . . . . . 2 . . . . . . . Bouncer 2 | . . . . . . . . . . . . . . . . 2 . . . . . . . Best Kill Streak 18 | . 2 3 . 18 3 . 6 3 4 1 . 5 1 . . 6 5 2 . 3 . 1 1 Combat Bots Only 16 | . 1 3 . 16 2 . 5 3 4 1 . 5 . . . 6 5 2 . 3 . 1 1 Max Kills in Single Turn 5 | . 1 1 . 4 1 . 3 2 2 1 . 3 1 . . 5 4 1 . 1 . 1 1 Gunslinging . | . . . . . . . . . . . . . . . . . . . . . . . . Exploded 4 | . . . . 3 . . 3 . 2 1 . 3 . . . 4 4 . . . . . . Melee 1 | . . . . 1 . . 1 . . . . . . . . . . 1 . . . . . Uniques/NPCs Destroyed . | . . . . . . . . . . . . . . . . . . . . . . . . Combat | -11 -10 -10 -10 -9 -8 -7 -7 -6 -6 -6 -6 -5 -5 -5 -5 -5 -4 -4 -4 -4 -4 -3 -3 -------- Run | Yrd Mat Min Exi Min Mat Fac Sto Fac Low Low Zio Pro Fac Upp Upp War Pro Fac Upp Upp Zhi Pro Res Hostile Shots Fired 1116 | . 1 21 . 47 33 1 550 85 24 1 . 17 . . 14 3 39 121 . 50 . 6 103 Missed 393 | . 1 5 . 14 16 . 184 31 12 . . 12 . . 9 3 21 50 . 18 . 1 16 Damage Taken 12922 | . 3 137 . 757 253 18 3967 999 229 42 . 76 . . 111 48 419 2076 . 693 . 98 2996 Core 3067 | . 3 10 . 119 58 . 483 102 38 . . . . . . . 40 643 . 243 . 22 1306 Absorbed by Shields 47 | . . . . . . . 12 35 . . . . . . . . . . . . . . . Redirected to Shielding 176 | . . . . . . . . . . . . . . . . . 26 . . . . 14 136 Regen/Repaired (Parts) 569 | . . . . . . . . . . . 569 . . . . . . . . . . . . Core Remaining (%) 66 | 100 . . . 47 89 . 31 . . . . 83 . . . . 96 . . . . 21 . Volleys Fired 403 | . 10 9 . 43 52 . 167 38 9 8 . 3 . . . 9 7 16 . 16 . 3 13 Largest 3 | . 2 2 . 2 2 . 2 3 2 3 . 1 . . . 2 2 2 . 2 . 1 2 Hottest 225 | . 120 120 . 93 138 . 141 188 120 159 . 39 . . . 111 125 180 . 163 . 225 225 Shots Fired 640 | . 20 18 . 50 65 . 288 79 14 17 . 3 . . . 11 9 26 1 20 . 5 14 Gun 279 | . . . . . 24 . 181 12 10 16 . . . . . 2 4 4 1 6 . 5 14 Cannon 291 | . 20 18 . 21 41 . 89 67 . . . . . . . . . 22 . 13 . . . Launcher 70 | . . . . 29 . . 18 . 4 1 . 3 . . . 9 5 . . 1 . . . Special . | . . . . . . . . . . . . . . . . . . . . . . . . Kinetic 145 | . . . . . 7 . 53 67 . . . . . . . . . 8 . 10 . . . Thermal 375 | . 20 18 . 21 58 . 209 5 . . . . . . . . . 18 1 6 . 5 14 Explosive 60 | . . . . 29 . . 18 . 4 1 . 3 . . . . 5 . . . . . . Electromagnetic 60 | . . . . . . . 8 7 10 16 . . . . . 11 4 . . 4 . . . Robot Hit Streak 27 | . 3 4 . 8 7 . 27 9 4 4 . 1 . . . 1 1 6 . 5 . 7 3 Robot Miss Streak 5 | . 1 2 . 3 1 . 4 4 2 2 . . . . . 2 3 3 . 2 . . 5 Penetration Max . | . . . . . . . . . . . . . . . . . . . . . . . . Secondary Targets . | . . . . . . . . . . . . . . . . . . . . . . . . Shots Hit Robots 425 | . 12 12 . 26 46 . 200 48 9 7 . 1 2 . . 3 2 35 . 13 . 4 5 Core Hits 338 | . 4 5 . 54 16 . 136 22 11 2 . 8 1 . . 46 10 11 . 7 . 2 3 Critical Kills 2 | . . . . . . . 1 . . . . . . . . . . 1 . . . . . Critical Parts Destroyed 2 | . . . . . . . . . . . . . . . . . . 2 . . . . . Critical Strikes 28 | . . . . 1 . . 17 4 . . . . . . . . . 4 . 1 . . 1 Burn 11 | . . . . . . . 10 . . . . . . . . . . . . . . . 1 Meltdown 1 | . . . . . . . 1 . . . . . . . . . . . . . . . . Destroy 1 | . . . . . . . . . . . . . . . . . . 1 . . . . . Blast 8 | . . . . . . . 5 3 . . . . . . . . . . . . . . . Corrupt 2 | . . . . . . . . 1 . . . . . . . . . . . 1 . . . Smash 2 | . . . . . . . . . . . . . . . . . . 2 . . . . . Sever 3 | . . . . 1 . . 1 . . . . . . . . . . 1 . . . . . Melee Attacks 178 | . . . . 4 3 . 18 34 . . . . 37 . . . . 74 . . . 1 7 Impact 55 | . . . . . . . . . . . . . . . . . . 47 . . . 1 7 Slashing 123 | . . . . 4 3 . 18 34 . . . . 37 . . . . 27 . . . . . Piercing . | . . . . . . . . . . . . . . . . . . . . . . . . Sneak Attacks 5 | . . . . . . . . 1 . . . . . . . . . 4 . . . . . Combat Hostiles . | . . . . . . . . . . . . . . . . . . . . . . . . Follow-up Attacks . | . . . . . . . . . . . . . . . . . . . . . . . . Damage Inflicted 19680 | . 219 216 . 2072 975 . 6693 1549 995 178 . 471 108 . . 2328 785 2113 . 526 . 152 300 Guns 4268 | . . . . . 262 . 2889 169 161 133 . . . . . 5 40 62 . 95 . 152 300 Cannons 4748 | . 211 209 . 243 707 . 1369 1124 . . . . . . . . . 551 . 334 . . . Explosions 8485 | . . . . 1728 . . 2242 . 834 45 . 471 . . . 2323 745 . . 97 . . . Melee 1957 | . . . . 101 . . 159 256 . . . . 108 . . . . 1333 . . . . . Ramming 222 | . 8 7 . . 6 . 34 . . . . . . . . . . 167 . . . . . Kinetic 2360 | . . . . . 88 . 783 1124 . . . . . . . . . 65 . 300 . . . Thermal 7213 | . 211 209 . 243 881 . 3361 133 151 45 . . . . . 884 . 548 . 95 . 152 300 Explosive 5869 | . . . . 1728 . . 2242 . 683 . . 471 . . . . 745 . . . . . . Electromagnetic 2059 | . . . . . . . 114 36 161 133 . . . . . 1444 40 . . 131 . . . Impact 1190 | . . . . . . . . . . . . . . . . . . 1190 . . . . . Slashing 767 | . . . . 101 . . 159 256 . . . . 108 . . . . 143 . . . . . Piercing . | . . . . . . . . . . . . . . . . . . . . . . . . Highest Corruption 22 | . . . . . 5 . 10 . . . . . . . . . . 15 15 22 22 22 16 Average Corruption 11 | . . . . . 5 . 7 . . . . . . . . . . 9 15 17 22 22 8 Corruption Purged 5 | . . . . . . . . . . . . . . . . . . 5 . . . . . Corruption Blocked . | . . . . . . . . . . . . . . . . . . . . . . . . Effects 222 | . . . . . 8 . 50 . . . . . . . . . . 69 28 19 2 41 5 Message Errors 57 | . . . . . 3 . 13 . . . . . . . . . . 16 6 5 1 12 1 Matter Fused 55 | . . . . . 1 . 15 . . . . . . . . . . 16 5 4 1 11 2 Heat Flow Errors 26 | . . . . . 1 . 5 . . . . . . . . . . 9 5 1 . 4 1 Energy Discharges 20 | . . . . . . . 3 . . . . . . . . . . 10 3 . . 4 . Parts Rejected 4 | . . . . . . . . . . . . . . . . . . . . 2 . 2 . Parts Fused 1 | . . . . . . . . . . . . . . . . . . 1 . . . . . Data Loss (minor) 38 | . . . . . 2 . 7 . . . . . . . . . . 11 6 6 . 6 . Data Loss (major) 9 | . . . . . 1 . 4 . . . . . . . . . . 3 . 1 . . . Misfires 4 | . . . . . . . . . . . . . . . . . . 1 1 . . 2 . Alerts 5 | . . . . . . . 1 . . . . . . . . . . 2 2 . . . . Misdirections 1 | . . . . . . . . . . . . . . . . . . . . . . . 1 Weapon Failures 2 | . . . . . . . 2 . . . . . . . . . . . . . . . . Overload Shots 12 | . . . . . . . . . . . . . . . . . . . . . . 2 10 Effects 1 | . . . . . . . . . . . . . . . . . . . . . . . 1 Energy Bleed 1 | . . . . . . . . . . . . . . . . . . . . . . . 1 Overflow Damage 907 | . 7 15 . 40 . . 131 149 11 . . 38 3 . . 14 5 494 . . . . . Projectiles 96 | . 7 15 . . . . 37 19 . . . . . . . . . 18 . . . . . Explosions 191 | . . . . 40 . . 83 . 11 . . 38 . . . 14 5 . . . . . . Melee 620 | . . . . . . . 11 130 . . . . 3 . . . . 476 . . . . . Knockbacks 29 | . . . . . . . 4 12 . . . . . . . . . 9 . 4 . . . Impact 8 | . . . . . . . . . . . . . . . . . . 8 . . . . . Kinetic 21 | . . . . . . . 4 12 . . . . . . . . . 1 . 4 . . . Secondary . | . . . . . . . . . . . . . . . . . . . . . . . . Self-Inflicted Damage 449 | . 3 . . 88 . . 162 . . . . . . . . 31 36 129 . . . . . Shots 10 | . . . . 3 . . 5 . . . . . . . . 1 1 . . . . . . Rammed 16 | . 2 . . . 1 . 11 . . . . . . . . . . 2 . . . . . Targets Rammed 21 | . 2 2 . . 3 . 12 . . . . . . . . . . 2 . . . . . Kicked 2 | . . 2 . . . . . . . . . . . . . . . . . . . . . Crushed 3 | . . . . . 2 . 1 . . . . . . . . . . . . . . . . Highest Temperature 1440 | . 300 355 . 90 122 . 264 347 318 276 . . 308 . . 102 123 603 252 224 . 193 1440 Average Temperature 140 | . 93 152 . 29 54 . 47 140 138 119 . . 161 . . 30 61 137 108 62 . 69 673 Received Heat Transfer 1994 | . . 21 . 26 144 9 1092 399 111 . . . . . 18 . 36 99 . 27 . 12 . Effects 34 | . 1 1 . . . . . 2 . 1 . . . . . . . 7 . . . . 22 Shutdowns 2 | . . 1 . . . . . . . . . . . . . . . . . . . . 1 Energy Bleed 5 | . 1 . . . . . . . . 1 . . . . . . . 1 . . . . 2 Interference 7 | . . . . . . . . 2 . . . . . . . . . 1 . . . . 4 Matter Decay 5 | . . . . . . . . . . . . . . . . . . 2 . . . . 3 Short Circuit 3 | . . . . . . . . . . . . . . . . . . . . . . . 3 Damage (minor) 1 | . . . . . . . . . . . . . . . . . . 1 . . . . . Damage (major) 4 | . . . . . . . . . . . . . . . . . . . . . . . 4 Damage (core) 7 | . . . . . . . . . . . . . . . . . . 2 . . . . 5 Siege Activations . | . . . . . . . . . . . . . . . . . . . . . . . . Robots Corrupted 2 | . . . . . . . . . . . . . . . . . . 2 . . . . . Combat Hostiles 1 | . . . . . . . . . . . . . . . . . . 1 . . . . . Parts Fried 14 | . . . . . . . . 1 . . . . . . . 3 . 10 . . . . . Impact Corruptions 13 | . . . . . . . . . . . . . . . . . . 13 . . . . . Robots Melted 4 | . . . . . . . 4 . . . . . . . . . . . . . . . . Combat Hostiles 4 | . . . . . . . 4 . . . . . . . . . . . . . . . . Parts Melted 34 | . . 1 . . 3 . 24 1 . . . . . . . 1 . 3 . 1 . . . Heat Transferred 12301 | . 444 444 . 518 1517 . 6975 250 100 50 . . . . . 750 . 481 . 148 . 174 450 Parts Sabotaged . | . . . . . . . . . . . . . . . . . . . . . . . . Parts Stolen . | . . . . . . . . . . . . . . . . . . . . . . . . Parts Stripped . | . . . . . . . . . . . . . . . . . . . . . . . . Power Chain Reactions 7 | . . . . . . . . . 1 1 . . . . . 5 . . . . . . . Alert | -11 -10 -10 -10 -9 -8 -7 -7 -6 -6 -6 -6 -5 -5 -5 -5 -5 -4 -4 -4 -4 -4 -3 -3 ------- Run | Yrd Mat Min Exi Min Mat Fac Sto Fac Low Low Zio Pro Fac Upp Upp War Pro Fac Upp Upp Zhi Pro Res Peak Influence 1236 | . 98 107 . 397 136 47 1236 738 . . . . 154 . . . . 512 . . . . 50 Initial 562 | . . 37 . . 96 32 20 562 . . . . 69 . . . . 485 . . . . . Average 316 | . 60 39 . 89 63 41 577 608 . . . . 87 . . . . 196 . . . . 6 Maximum Alert Level 4 | . . . . 1 . . 4 3 . . . . . . . . . 2 . . . . . Low Security (%) 53 | 100 100 100 . 86 100 100 28 . . . . . 100 . . . . 55 . . . . 100 Level 1 10 | . . . . 13 . . 9 . . . . . . . . . . 33 . . . . . Level 2 22 | . . . . . . . 16 91 . . . . . . . . . 10 . . . . . Level 3 10 | . . . . . . . 35 8 . . . . . . . . . . . . . . . Level 4 2 | . . . . . . . 9 . . . . . . . . . . . . . . . . Level 5 . | . . . . . . . . . . . . . . . . . . . . . . . . High Security . | . . . . . . . . . . . . . . . . . . . . . . . . Max Security . | . . . . . . . . . . . . . . . . . . . . . . . . Squads Dispatched 43 | . 1 . . . 4 . 17 7 . . . . . . 1 . 1 10 . 1 . . 1 Investigation 11 | . . . . . 1 . 3 2 . . . . . . . . . 5 . . . . . Extermination 11 | . . . . . . . 4 2 . . . . . . . . . 4 . . . . 1 Reinforcement 12 | . 1 . . . 3 . 6 1 . . . . . . . . . 1 . . . . . Assault 6 | . . . . . . . 1 2 . . . . . . 1 . 1 . . 1 . . . Garrison 3 | . . . . . . . 3 . . . . . . . . . . . . . . . . Intercept . | . . . . . . . . . . . . . . . . . . . . . . . . Searches Triggered 1 | . . . . . . . . . . . . . . . . . . 1 . . . . . Construction Impeded 3 | . . . . . . . 3 . . . . . . . . . . . . . . . . Haulers Reinforced 4 | . . . . . . . 3 . . . . . . . . . . 1 . . . . . Active Scanning Responses . | . . . . . . . . . . . . . . . . . . . . . . . . Cargo Convoy Interrupts . | . . . . . . . . . . . . . . . . . . . . . . . . Stealth | -11 -10 -10 -10 -9 -8 -7 -7 -6 -6 -6 -6 -5 -5 -5 -5 -5 -4 -4 -4 -4 -4 -3 -3 --------- Run | Yrd Mat Min Exi Min Mat Fac Sto Fac Low Low Zio Pro Fac Upp Upp War Pro Fac Upp Upp Zhi Pro Res Distress Signals 8 | . 1 . . . 1 . 2 2 . . . . . . . . 1 1 . . . . . Communications Jammed . | . . . . . . . . . . . . . . . . . . . . . . . . Distress Signals . | . . . . . . . . . . . . . . . . . . . . . . . . Times Spotted 273 | . 4 5 . 27 13 3 58 25 14 1 . 4 3 . 7 36 32 26 . 11 . 1 3 Peak Tracking Total 18 | . 2 3 . 6 3 3 6 7 7 3 . 3 1 . 12 17 18 6 . 10 . 1 3 Tactical Retreats 29 | . . . . 1 . . 2 5 2 1 . . . . 3 3 3 7 . 2 . . . Traps | -11 -10 -10 -10 -9 -8 -7 -7 -6 -6 -6 -6 -5 -5 -5 -5 -5 -4 -4 -4 -4 -4 -3 -3 ------- Run | Yrd Mat Min Exi Min Mat Fac Sto Fac Low Low Zio Pro Fac Upp Upp War Pro Fac Upp Upp Zhi Pro Res Traps Triggered 15 | . . . . . . . 4 2 . . . . . . . 4 . 5 . . . . . Indirectly 4 | . . . . . . . . . . . . . . . . 4 . . . . . . . Trap Hack Attempts . | . . . . . . . . . . . . . . . . . . . . . . . . Triggered . | . . . . . . . . . . . . . . . . . . . . . . . . Disarmed . | . . . . . . . . . . . . . . . . . . . . . . . . Reprogrammed . | . . . . . . . . . . . . . . . . . . . . . . . . Reused . | . . . . . . . . . . . . . . . . . . . . . . . . Traps Extracted . | . . . . . . . . . . . . . . . . . . . . . . . . Installed . | . . . . . . . . . . . . . . . . . . . . . . . . Triggered 9 | . . . . . . . . . . . . . . . . 8 . 1 . . . . . Machines | -11 -10 -10 -10 -9 -8 -7 -7 -6 -6 -6 -6 -5 -5 -5 -5 -5 -4 -4 -4 -4 -4 -3 -3 ---------- Run | Yrd Mat Min Exi Min Mat Fac Sto Fac Low Low Zio Pro Fac Upp Upp War Pro Fac Upp Upp Zhi Pro Res Machines Disabled 20 | . . . . 2 . . 10 6 . . . . . . . 1 . 1 . . . . . Max in Single Turn 2 | . . . . 1 . . 2 1 . . . . . . . 1 . 1 . . . . . Garrison Access 4 | . . . . . . . 1 2 . . . . 1 . . . . . . . . . . Machines Repaired . | . . . . . . . . . . . . . . . . . . . . . . . . Machines Dismantled . | . . . . . . . . . . . . . . . . . . . . . . . . Machines Sabotaged . | . . . . . . . . . . . . . . . . . . . . . . . . Overloaded Fab Kills . | . . . . . . . . . . . . . . . . . . . . . . . . Hacking | -11 -10 -10 -10 -9 -8 -7 -7 -6 -6 -6 -6 -5 -5 -5 -5 -5 -4 -4 -4 -4 -4 -3 -3 --------- Run | Yrd Mat Min Exi Min Mat Fac Sto Fac Low Low Zio Pro Fac Upp Upp War Pro Fac Upp Upp Zhi Pro Res Machines Accessed 63 | . 3 1 3 . 8 . 7 12 . . . . 4 1 . 6 1 8 . . 8 . 1 Terminals 32 | . 3 . . . 7 . 6 6 . . . . 3 . . . 1 6 . . . . . Fabricators 1 | . . . . . . . . . . . . . . . . . . 1 . . . . . Repair Stations 1 | . . . . . . . . 1 . . . . . . . . . . . . . . . Recycling Units 1 | . . . . . . . . . . . . . . . . . . . . . . . 1 Scanalyzers 5 | . . . . . 1 . . 3 . . . . . . . . . 1 . . . . . Garrison Access 4 | . . . . . . . 1 2 . . . . 1 . . . . . . . . . . Total Hacks 191 | . 7 1 3 . 17 . 12 32 . . . . 22 1 . 12 1 34 . . 47 . 2 Successful 124 | . 2 1 3 . 6 . 6 11 . . . . 9 1 . 12 1 24 . . 47 . 1 Failed 67 | . 5 . . . 11 . 6 21 . . . . 13 . . . . 10 . . . . 1 Catastrophic 11 | . 1 . . . 3 . 2 3 . . . . . . . . . 1 . . . . 1 Database Lockouts . | . . . . . . . . . . . . . . . . . . . . . . . . Manual 32 | . . . 1 . 5 . 4 1 . . . . 7 . . . . 14 . . . . . Terminals 98 | . 7 . . . 14 . 11 17 . . . . 21 . . . 1 27 . . . . . Fabricators 3 | . . . . . . . . . . . . . . . . . . 3 . . . . . Repair Stations 3 | . . . . . . . . 3 . . . . . . . . . . . . . . . Recycling Units 2 | . . . . . . . . . . . . . . . . . . . . . . . 2 Scanalyzers 15 | . . . . . 3 . . 8 . . . . . . . . . 4 . . . . . Garrison Access 6 | . . . . . . . 1 4 . . . . 1 . . . . . . . . . . Terminal Hacks 104 | . 2 1 3 . 4 . 5 3 . . . . 8 1 . 12 1 17 . . 47 . . Record 57 | . . . 2 . . . . 1 . . . . . . . 11 . 8 . . 35 . . Part Schematic 7 | . . . . . . . . . . . . . . . . . . 3 . . 4 . . Robot Analysis 4 | . . . . . . . . . . . . . . . . . . . . . 4 . . Prototype ID Bank 9 | . . . . . . . 2 . . . . . 2 . . . . 1 . . 4 . . Open Door 6 | . . 1 . . . . 2 . . . . . . 1 . 1 1 . . . . . . Branch Access Points 2 | . 1 . . . . . . 1 . . . . . . . . . . . . . . . Terminal Index 1 | . . . . . . . . . . . . . 1 . . . . . . . . . . Alert Level 2 | . . . . . . . . . . . . . 1 . . . . 1 . . . . . Unreport Threat 1 | . . . . . . . . . . . . . . . . . . 1 . . . . . Locate Traps 1 | . . . . . 1 . . . . . . . . . . . . . . . . . . Extermination Status 1 | . . . . . . . . 1 . . . . . . . . . . . . . . . Recall Investigation 2 | . . . . . 1 . . . . . . . . . . . . 1 . . . . . Hauler Manifests 4 | . 1 . . . 1 . . . . . . . 1 . . . . 1 . . . . . Registered Components 1 | . . . . . . . . . . . . . 1 . . . . . . . . . . Zone Layout 5 | . . . . . 1 . 1 . . . . . 2 . . . . 1 . . . . . Derelict Proto ID Bank 1 | . . . 1 . . . . . . . . . . . . . . . . . . . . Fabricator Hacks 2 | . . . . . . . . . . . . . . . . . . 2 . . . . . Load Schematic 1 | . . . . . . . . . . . . . . . . . . 1 . . . . . Build 1 | . . . . . . . . . . . . . . . . . . 1 . . . . . Repair Station Hacks 1 | . . . . . . . . 1 . . . . . . . . . . . . . . . Scan Component 1 | . . . . . . . . 1 . . . . . . . . . . . . . . . Recycling Unit Hacks 1 | . . . . . . . . . . . . . . . . . . . . . . . 1 Report Inventory 1 | . . . . . . . . . . . . . . . . . . . . . . . 1 Scanalyzer 9 | . . . . . 2 . . 5 . . . . . . . . . 2 . . . . . Insert Component 6 | . . . . . 2 . . 3 . . . . . . . . . 1 . . . . . Analyze 3 | . . . . . . . . 2 . . . . . . . . . 1 . . . . . Garrison Access Hacks 4 | . . . . . . . 1 2 . . . . 1 . . . . . . . . . . Seal Access 4 | . . . . . . . 1 2 . . . . 1 . . . . . . . . . . Unauthorized Hacks 3 | . . . . . . . . . . . . . . . . . . 3 . . . . . Terminals 1 | . . . . . . . . . . . . . . . . . . 1 . . . . . Assimilate 1 | . . . . . . . . . . . . . . . . . . 1 . . . . . Fabricators 1 | . . . . . . . . . . . . . . . . . . 1 . . . . . Report 1 | . . . . . . . . . . . . . . . . . . 1 . . . . . Repair Stations . | . . . . . . . . . . . . . . . . . . . . . . . . Recycling Units . | . . . . . . . . . . . . . . . . . . . . . . . . Scanalyzers 1 | . . . . . . . . . . . . . . . . . . 1 . . . . . Extract 1 | . . . . . . . . . . . . . . . . . . 1 . . . . . Garrison Access . | . . . . . . . . . . . . . . . . . . . . . . . . Data Cores Recovered 3 | . . . . . . . 1 1 . . . . 1 . . . . . . . . . . Used 1 | . . . . . . . . . . . . . 1 . . . . . . . . . . Hacking Detections 37 | . 3 . . . 7 . 4 10 . . . . 3 . . . 1 8 . . . . 1 Full Trace Events 10 | . . . . . 2 . 2 2 . . . . . . . . . 4 . . . . . Feedback Events . | . . . . . . . . . . . . . . . . . . . . . . . . Feedback Blocked 1 | . . . . . . . . . . . . . . . . . . 1 . . . . . Robot Schematics Acquired 3 | . . . . . . . . . . . 3 . . . . . . . . . . . . Robots Built . | . . . . . . . . . . . . . . . . . . . . . . . . Authchips . | . . . . . . . . . . . . . . . . . . . . . . . . Time . | . . . . . . . . . . . . . . . . . . . . . . . . Total Robot Build Rating . | . . . . . . . . . . . . . . . . . . . . . . . . Part Schematics Acquired 34 | . . . . . . . . 1 . . 15 . . . . . . 14 . . 4 . . Parts Built 1 | . . . . . . . . . . . . . . . . . . 1 . . . . . Authchips . | . . . . . . . . . . . . . . . . . . . . . . . . Time 93 | . . . . . . . . . . . . . . . . . . 93 . . . . . Total Part Build Rating 7 | . . . . . . . . . . . . . . . . . . 7 . . . . . Parts Repaired . | . . . . . . . . . . . . . . . . . . . . . . . . Time . | . . . . . . . . . . . . . . . . . . . . . . . . Parts Recycled . | . . . . . . . . . . . . . . . . . . . . . . . . Recycled Matter . | . . . . . . . . . . . . . . . . . . . . . . . . Retrieved Matter . | . . . . . . . . . . . . . . . . . . . . . . . . Retrieved Components . | . . . . . . . . . . . . . . . . . . . . . . . . Parts Scanalyzed 3 | . . . . . . . . 2 . . . . . . . . . 1 . . . . . Part Schematics Acquired 2 | . . . . . . . . 1 . . . . . . . . . 1 . . . . . Parts Damaged . | . . . . . . . . . . . . . . . . . . . . . . . . Bothacking | -11 -10 -10 -10 -9 -8 -7 -7 -6 -6 -6 -6 -5 -5 -5 -5 -5 -4 -4 -4 -4 -4 -3 -3 ------------ Run | Yrd Mat Min Exi Min Mat Fac Sto Fac Low Low Zio Pro Fac Upp Upp War Pro Fac Upp Upp Zhi Pro Res Used RIF Installer . | . . . . . . . . . . . . . . . . . . . . . . . . Robots Hacked . | . . . . . . . . . . . . . . . . . . . . . . . . Non-combat . | . . . . . . . . . . . . . . . . . . . . . . . . Combat . | . . . . . . . . . . . . . . . . . . . . . . . . Robot Hacks Applied . | . . . . . . . . . . . . . . . . . . . . . . . . Relay Couplers Released . | . . . . . . . . . . . . . . . . . . . . . . . . Fabnet Peak Effective % . | . . . . . . . . . . . . . . . . . . . . . . . . Robots Rewired . | . . . . . . . . . . . . . . . . . . . . . . . . Allies Hacked . | . . . . . . . . . . . . . . . . . . . . . . . . Hacks Repelled . | . . . . . . . . . . . . . . . . . . . . . . . . Allies | -11 -10 -10 -10 -9 -8 -7 -7 -6 -6 -6 -6 -5 -5 -5 -5 -5 -4 -4 -4 -4 -4 -3 -3 -------- Run | Yrd Mat Min Exi Min Mat Fac Sto Fac Low Low Zio Pro Fac Upp Upp War Pro Fac Upp Upp Zhi Pro Res Total Allies 3 | . . . . 3 . . . . . . . . . . . . . . . . . . . Largest Group 2 | . . . . 2 1 . . . . . . . . . . . . . . . . . . Highest-Rated Group 38 | . . . . 38 31 . . . . . . . . . . . . . . . . . . Highest-Rated Ally 31 | . . . . 31 31 . . . . . . . . . . . . . . . . . . Total Orders 7 | . . 1 . . . . . . . . . . . . . . . . . . . 6 . EXPLORE 6 | . . . . . . . . . . . . . . . . . . . . . . 6 . RETURN 1 | . . 1 . . . . . . . . . . . . . . . . . . . . . Ally Attacks 17 | . . . . 11 6 . . . . . . . . . . . . . . . . . . Total Damage 103 | . . . . 61 42 . . . . . . . . . . . . . . . . . . Kills 2 | . . . . 2 . . . . . . . . . . . . . . . . . . . Allies Corrupted . | . . . . . . . . . . . . . . . . . . . . . . . . Allies Melted . | . . . . . . . . . . . . . . . . . . . . . . . . Intel | -11 -10 -10 -10 -9 -8 -7 -7 -6 -6 -6 -6 -5 -5 -5 -5 -5 -4 -4 -4 -4 -4 -3 -3 ------- Run | Yrd Mat Min Exi Min Mat Fac Sto Fac Low Low Zio Pro Fac Upp Upp War Pro Fac Upp Upp Zhi Pro Res Robot Analysis Total 4 | . . . . . . . . . . . . . . . . . . . . . 4 . . Derelict Logs Recovered 12 | . . 2 . . . . . . 1 2 1 1 . . 2 . 1 . 1 1 . . . Drone Launches 8 | . . 1 . . . . . . . . . . . . . . . . . . . 7 . Drone Recoveries 8 | . . 1 . . . . . . . . . . . . . . . . . . . 7 . Exploration | -11 -10 -10 -10 -9 -8 -7 -7 -6 -6 -6 -6 -5 -5 -5 -5 -5 -4 -4 -4 -4 -4 -3 -3 ------------- Run | Yrd Mat Min Exi Min Mat Fac Sto Fac Low Low Zio Pro Fac Upp Upp War Pro Fac Upp Upp Zhi Pro Res Turns Passed 15449 | 10 263 567 692 801 1076 290 2749 1882 238 180 589 162 505 112 122 581 180 2274 537 374 79 824 362 Spaces Moved 13973 | 19 182 436 457 512 565 192 1054 2093 389 252 774 434 780 307 329 947 423 2624 415 248 146 258 137 Core 639 | 19 39 . . . . . 1 7 . . . . . . . . . 208 . 33 146 173 13 Treads 1448 | . . . . . 358 6 758 294 . . . . . . . . . . . 1 . . 31 Legs 1296 | . 143 436 457 69 . . 1 12 . . . . . . . . . . . . . 85 93 Wheels 2034 | . . . . 443 207 186 294 . . . . . . . . . . 277 415 212 . . . Hover 14 | . . . . . . . . . . . . . . . . . . 12 . 2 . . . Flight 8542 | . . . . . . . . 1780 389 252 774 434 780 307 329 947 423 2127 . . . . . Fastest Speed 24 | 50 50 120 120 100 115 135 93 39 42 62 62 35 35 35 35 35 35 24 115 50 50 50 50 Average Speed 79 | 50 114 120 149 123 151 136 148 66 53 62 62 35 35 35 35 35 37 50 117 112 50 195 199 Slowest Speed 850 | 50 200 120 190 190 250 170 500 850 62 62 62 62 35 35 35 37 132 274 130 350 50 350 260 Overloaded Moves . | . . . . . . . . . . . . . . . . . . . . . . . . Propulsion Burnouts . | . . . . . . . . . . . . . . . . . . . . . . . . Robots Hopped 22 | . . . . . . . . 5 1 . . . 7 . . 2 1 6 . . . . . Cave-ins Triggered . | . . . . . . . . . . . . . . . . . . . . . . . . Exploration Rate (%) 52 | 4 23 92 62 79 42 9 75 38 60 49 81 76 15 65 48 89 65 39 68 37 61 85 4 Regions Visited 23 Branch Regions 16 Pre-discovered Areas 7 | . . . 1 . . . . . . 1 . . . . 1 . . . . 1 3 . . Known Exits Taken 5 | . 1 . . . . . . 1 . 1 . 1 1 . . . . . . . . . . Unknown Exits Taken 18 | 1 . 1 1 1 1 1 1 . 1 . 1 . . 1 1 1 1 1 1 1 1 1 . Scrap Searched 17 | . . 1 . 1 . . . . . 1 3 1 . 2 2 . 1 . 2 . . 3 . Spaces Dug 180 | . . . . 20 4 . 12 27 . 13 . . 32 . . . 18 46 . . . 1 7 Terrain Destroyed 745 | . . . . 228 7 . 209 36 38 19 . 36 32 . . 7 67 48 . 4 . 2 12 Melee 119 | . . . . . . . 6 27 . . . . 32 . . . . 46 . . . 1 7 Projectile 49 | . . . . . 7 . 21 9 . . . . . . . . . 2 . 4 . 1 5 AOE 577 | . . . . 228 . . 182 . 38 19 . 36 . . . 7 67 . . . . . . Terrain Rammed 1 | . . . . . . . . . . . . . . . . . . 1 . . . . . Walls Destroyed 1 | . . . . . . . . . . . . . . . . . . 1 . . . . . Machines Disabled . | . . . . . . . . . . . . . . . . . . . . . . . . Actions | -11 -10 -10 -10 -9 -8 -7 -7 -6 -6 -6 -6 -5 -5 -5 -5 -5 -4 -4 -4 -4 -4 -3 -3 --------- Run | Yrd Mat Min Exi Min Mat Fac Sto Fac Low Low Zio Pro Fac Upp Upp War Pro Fac Upp Upp Zhi Pro Res Total 17404 | 18 214 463 470 617 722 221 1892 2463 401 259 882 438 951 310 337 1178 435 3431 462 320 150 569 201 Wait 2303 | . 3 6 . 38 39 23 514 202 2 . 109 . 110 1 3 213 . 629 42 51 . 294 24 Move 13907 | 18 181 435 456 511 564 191 1053 2083 386 251 773 433 765 306 328 942 420 2611 414 247 145 257 137 Hop 20 | . . . . . . . . 4 1 . . . 7 . . 2 1 5 . . . . . Pick Up 122 | . 7 2 6 6 15 2 16 29 . . . . 11 1 2 1 1 18 . . . 3 2 Fast Attach 133 | . 8 2 1 5 7 2 36 12 1 . . 1 3 1 . 2 . 28 3 2 3 9 7 Attach 55 | . . 1 1 2 4 . 11 7 . . . . 4 . . 1 3 14 . . 1 2 4 Detach 28 | . . . 1 1 1 1 4 7 . . . . 2 1 . 2 1 6 . . . . 1 Swap 84 | . . 1 . 7 10 . 29 13 1 . . . 3 . . 4 2 7 . 3 . . 4 Drop 148 | . 3 5 5 . 24 2 32 34 1 . . 1 9 . 4 2 . 19 3 1 1 . 2 Fire 403 | . 10 9 . 43 52 . 167 38 9 8 . 3 . . . 9 7 16 . 16 . 3 13 Melee 178 | . . . . 4 3 . 18 34 . . . . 37 . . . . 74 . . . 1 7 Ram 5 | . 2 . . . . . . . . . . . . . . . . 3 . . . . . Kick 2 | . . 2 . . . . . . . . . . . . . . . . . . . . . Crush 15 | . . . . . 3 . 12 . . . . . . . . . . . . . . . . Escape Stasis 1 | . . . . . . . . . . . . . . . . . . 1 . . . . . Rewire . | . . . . . . . . . . . . . . . . . . . . . . . . Trap . | . . . . . . . . . . . . . . . . . . . . . . . . Miscellaneous . | . . . . . . . . . . . . . . . . . . . . . . . . Route ------- -11/Scrapyard -10/Materials (discovered 2 exits: *Min x2) -10/Mines (discovered 3 exits: [*Mat x2] / *Exi) -10/Exiles -9/Mines (discovered 2 exits: *Mat x2) -8/Materials (discovered 2 exits: [*Fac x2]) -7/Factory -7/Storage (discovered 2 exits: *Fac / [*Rec]) -6/Factory (discovered 5 exits: *Fac / *Low x2 / Ext x2) -6/Lower Caves -6/Lower Caves (discovered 2 exits: *Fac / *Zio) -6/Zion -5/Proximity Caves -5/Factory -5/Upper Caves -5/Upper Caves -5/Warlord -4/Proximity Caves -4/Factory (discovered 3 exits: *Res / [*Upp x2]) -4/Upper Caves -4/Upper Caves (discovered 2 exits: Res / *Zhi) -4/Zhirov -3/Proximity Caves -3/Research History --------- Turn | Location | Event 3 | -11/Scrapyard | Discovered new exit (range 14) 11 | -11/Scrapyard | Entered Materials 210 | -10/Materials | Identified exit to Mines 274 | -10/Materials | Entered Mines 284 | -10/Mines | Found DCF Scrap (15 items) 360 | -10/Mines | A weapon hastily lodged in a ceiling crevice suddenly fell to the ground 412 | -10/Mines | Found the Drone Emporium 416 | -10/Mines | Found Prototype Device 416 | -10/Mines | Identified Splice Drone Bay 512 | -10/Mines | Learned Materials emergency access door positions 589 | -10/Mines | Build established: Mutant 648 | -10/Mines | Received a Rocket Launcher from a helpful Derelict 666 | -10/Mines | Discovered new exit (range 7) 796 | -10/Mines | Discovered new exit (range 9) 801 | -10/Mines | Learned Materials trap positions 835 | -10/Mines | Deemed a non-threat by the Exiles lab entrance 837 | -10/Mines | Discovered new exit (range 5) 841 | -10/Mines | Entered Exiles 870 | -10/Exiles | Met 8R-AWN 891 | -10/Exiles | Met EX-HEX 937 | -10/Exiles | Met EX-DEC 943 | -10/Exiles | Learned location of Zion (-6) 973 | -10/Exiles | Met EX-BIN 990 | -10/Exiles | Aligned with FarCom system 991 | -10/Exiles | Given EX-Vault access code 1020 | -10/Exiles | Opened EX-Vault 1062 | -10/Exiles | Found Flying Fortress v7 1088 | -10/Exiles | Warned to stay clear of 0b10 Research branches 1513 | -10/Exiles | Discovered new exit (range 11) 1533 | -10/Exiles | Left Exiles lab with Flying Fortress v7 1533 | -10/Exiles | Entered Mines 1536 | -9/Mines | Received a Mining Laser from a helpful Derelict 1587 | -9/Mines | Assembled infested the area 1704 | -9/Mines | Destroyed 16 combat bots 2040 | -9/Mines | Lost 3 parts (1n1u1w) 2103 | -9/Mines | Discovered new exit (range 10) 2225 | -9/Mines | Core integrity fell below 50% 2313 | -9/Mines | Discovered new exit (range 5) 2334 | -9/Mines | Entered Materials 2334 | -8/Materials | Accompanied by 1 ally 2334 | -8/Materials | Evolved 4 slots: Propulsion x2, Utility x2 2335 | -8/Materials | Loaded intel: 6 trap records 2339 | -8/Materials | Led the pair of lost Derelicts to an unsafe place 2532 | -8/Materials | Discovered new exit (range 14) 3374 | -8/Materials | Met 7R-MNS 3405 | -8/Materials | Discovered new exit (range 4) 3410 | -8/Materials | Entered Factory 3410 | -7/Factory | Evolved 2 slots: Propulsion x1, Utility x1 3411 | -7/Factory | Caught up to 7R-MNS 3691 | -7/Factory | Discovered new exit (range 5) 3700 | -7/Factory | Entered Storage 4728 | -7/Storage | Garrison activated, responded to threat 5035 | -7/Storage | Discovered new exit (range 10) 5203 | -7/Storage | Build established: Scavenger-Mutant 5325 | -7/Storage | Lost 5 parts (1n2u2w) 5372 | -7/Storage | System corruption reached 10% 5384 | -7/Storage | Lost 4 parts (1p2n1w) 5486 | -7/Storage | Core integrity fell below 50% 5510 | -7/Storage | Lost 4 parts (1p2n1u) 5609 | -7/Storage | Used back door to open Recycling access 5609 | -7/Storage | Discovered new exit (range 5) 6100 | -7/Storage | First assault squad dispatched 6449 | -7/Storage | Entered Factory 6449 | -6/Factory | Evolved 2 slots: Propulsion x1, Weapon x1 7098 | -6/Factory | Lost 5 parts (5n) 7149 | -6/Factory | First assault squad dispatched 7279 | -6/Factory | Identified exit to Lower Caves 7279 | -6/Factory | Identified exit to Extension 7761 | -6/Factory | Build established: Hacker-Mutant 8047 | -6/Factory | Spotted B-75 Beast 8315 | -6/Factory | Discovered new exit (range 8) 8331 | -6/Factory | Entered Lower Caves 8566 | -6/Lower Caves | Discovered new exit (range 6) 8569 | -6/Lower Caves | Entered another Lower Caves area 8573 | -6/Lower Caves | Discovered new exit (range 12) 8575 | -6/Lower Caves | Encountered a Warlord checkpoint 8618 | -6/Lower Caves | Identified exit to Zion 8637 | -6/Lower Caves | Build established: Hacker-Tank 8749 | -6/Lower Caves | Entered Zion 8772 | -6/Zion | Visited the Megawrench Repair Shop 8772 | -6/Zion | Megawrench repaired 6 parts 8785 | -6/Zion | Discovered new exit (range 21) 8964 | -6/Zion | Learned Factory garrison access intel 9088 | -6/Zion | Rebuked by Imprinter 9338 | -6/Zion | Entered Proximity Caves 9363 | -5/Proximity Caves | Identified exit to Factory 9479 | -5/Proximity Caves | Spotted B-75 Beast 9500 | -5/Proximity Caves | Entered Factory 9500 | -5/Factory | Evolved 2 slots: Utility x2 9501 | -5/Factory | Identified exit to Upper Caves 9502 | -5/Factory | Loaded intel: 2 garrison access locations 9796 | -5/Factory | Build established: Hacker-Mutant 10005 | -5/Factory | Entered Upper Caves 10115 | -5/Upper Caves | Discovered new exit (range 5) 10117 | -5/Upper Caves | Entered another Upper Caves area 10142 | -5/Upper Caves | Attracted the attention of an 0b10 outpost 10161 | -5/Upper Caves | Attracted the attention of an 0b10 checkpoint 10165 | -5/Upper Caves | Learned Factory terminal intel 10203 | -5/Upper Caves | Discovered new exit (range 21) 10218 | -5/Upper Caves | Learned location of Armory (-3) 10239 | -5/Upper Caves | Entered Warlord 10276 | -5/Warlord | Learned Research emergency access door positions 10276 | -5/Warlord | Learned Quarantine stockpile data 10276 | -5/Warlord | Learned 4 Armory zone layouts 10276 | -5/Warlord | Learned Armory garrison access intel 10276 | -5/Warlord | Learned Research fabricator intel 10400 | -5/Warlord | Met Warlord 10415 | -5/Warlord | Visited the Vortex Lab 10419 | -5/Warlord | Found Prototype Energy Cannon 10419 | -5/Warlord | Identified Vortex Cannon 10423 | -5/Warlord | Found Vortex Cannon 10425 | -5/Warlord | Warlord's base attacked by MAIN.C 10709 | -5/Warlord | Lost 3 allies 10716 | -5/Warlord | Warlord forces counterattacked 10726 | -5/Warlord | Spotted Executioner 10773 | -5/Warlord | Destroyed Executioner 10800 | -5/Warlord | Discovered new exit (range 14) 10817 | -5/Warlord | Lost 11 allies 10820 | -5/Warlord | Entered Proximity Caves 10822 | -4/Proximity Caves | Spotter reported a threat 10823 | -4/Proximity Caves | Spotter reported a threat 10856 | -4/Proximity Caves | Learned Research stockpile data 10953 | -4/Proximity Caves | Spotted B-86 Titan 10972 | -4/Proximity Caves | Attracted the attention of an 0b10 outpost 10973 | -4/Proximity Caves | Attracted the attention of an 0b10 checkpoint 10987 | -4/Proximity Caves | Snuck into a huge 0b10 base via the rear entrance 10998 | -4/Proximity Caves | Discovered new exit (range 8) 11000 | -4/Proximity Caves | Entered Factory 11000 | -4/Factory | Evolved 2 slots: Utility x2 11001 | -4/Factory | Loaded intel: 26 terminal locations 11108 | -4/Factory | Fabricated Exp. System Shield (x1) 11250 | -4/Factory | Search patrols dispatched 11351 | -4/Factory | Discovered new exit (range 21) 11361 | -4/Factory | Spotted B-86 Titan 11381 | -4/Factory | Discovered new exit (range 19) 11587 | -4/Factory | System corruption reached 10% 11623 | -4/Factory | Build established: Wizard-Mutant 12004 | -4/Factory | Discovered new exit (range 9) 12494 | -4/Factory | Released all parts (13) 12515 | -4/Factory | Lost 4 parts (1p2n1u) 12623 | -4/Factory | Core integrity fell below 50% 12980 | -4/Factory | Build established: Scavenger-Assassin 13274 | -4/Factory | Entered Upper Caves 13564 | -4/Upper Caves | Build established: Scavenger-Mutant 13597 | -4/Upper Caves | Spotted B-86 Titan 13759 | -4/Upper Caves | Learned Research garrison access intel 13798 | -4/Upper Caves | Discovered new exit (range 6) 13811 | -4/Upper Caves | Entered another Upper Caves area 13853 | -4/Upper Caves | Discovered new exit (range 13) 14031 | -4/Upper Caves | Lost 3 parts (2n1u) 14119 | -4/Upper Caves | Learned location of Quarantine (-3) 14141 | -4/Upper Caves | Attracted the attention of an 0b10 outpost 14169 | -4/Upper Caves | Released all parts (9) 14179 | -4/Upper Caves | Discovered new exit (range 12) 14185 | -4/Upper Caves | Entered Zhirov 14185 | -4/Zhirov | Discovered new exit (range 3) 14200 | -4/Zhirov | Lost 3 parts (2n1u) 14200 | -4/Zhirov | Met Zhirov 14209 | -4/Zhirov | Learned location of Testing (-2) 14209 | -4/Zhirov | Learned location of Command (-1) 14220 | -4/Zhirov | Zhirov requested help retrieving the SGEMP Prototype 14264 | -4/Zhirov | Entered Proximity Caves 14718 | -3/Proximity Caves | Build established: Hacker-Mutant 15069 | -3/Proximity Caves | Discovered new exit (range 5) 15088 | -3/Proximity Caves | Entered Research 15088 | -3/Research | Evolved 2 slots: Utility x2 15091 | -3/Research | Loaded intel: 3 fabricator locations 15092 | -3/Research | Loaded intel: 3 garrison access locations 15391 | -3/Research | Core integrity fell below 50% 15409 | -3/Research | Core integrity fell below 20% 15412 | -3/Research | System corruption reached 10% 15450 | -3/Research | Destroyed by P-80 Master with Gamma Rifle Last Messages --------------- 15408_ Mak. Hammer destroyed. 15409_ Overheating: Core damaged (-195). 15412_ Overheating: System interference. 15412_ Imp. Melee Analysis Suite temporarily disabled. 15413_ Overheating: Matter decay (-20). 15414_ Impulse Thruster Array destroyed. 15417_ Imp. Melee Analysis Suite destroyed. 15417_ Lgt. Antimatter Reactor destroyed. 15420_ System Shield destroyed. 15420_ Adv. Cryofiber Web destroyed. 15424_ System corrupted: Matter fused (-9). 15429_ Mak. System Shield destroyed. 15432_ Hvy. Shock Bomb Launcher destroyed. 15433_ Acquired Prototype Energy Gun. 15433_ Identified Adv. Plasma Rifle. 15435_ Exp. Core Shielding destroyed. 15436_ Acquired Adv. Plasma Rifle. 15441_ LCOTZ%UQK><=BIPPBTV1:2UHWIBQ 15442_ P-80 Master suffers critical hit (Burn). 15447_ Adv. Plasma Rifle destroyed. Map ----- +----------------------------------------------------+ | ?????????????????????????????????????????????????? | | ?????????????????????????????????????????????????? | | ?????????????????????????????????????????????????? | | ?????????????????????????????????????????????????? | | ?????????????????????????????????????????????????? | | ?????????????????????????????????????????????????? | | ?????????????????????????????????????????????????? | | ?????????????????????????????????????????????????? | | ?????????????????????????????????????????????????? | | ?????????????????????????????????????????????????? | | ?????????????????????????????????????????????????? | | ?????????????????????????????????????????????????? | | ??????????????"??????????????????????????????????? | | ????????????"""??????????????????????????????????? | | ???????????o??G??????????????????????????????????? | | ????????????"""???????????????????? ??????????? | | ??????????????"???????????????????? #?????????? | | ??????????????????????????????????? #?????????? | | ??????????????????????????????????? #?????????? | | ??????????????????#############???? #?????????? | | ??????????????????# """T""" #???? #?????????? | | ??????????????????# """ """ #???? #?????????? | | ??????????????????# #???# #?????????? | | ??????????????????# #???# #?????????? | | ??????????????????# !! #???# #?????????? | | ??????????????????# p !@ #???# ##????????? | | ????????????"""???# p ! % ##### ##????????? | | ???????? """ ###+############# ##????????? | | ???????# ! % ##????????? | | ???????# ##????????? | | ??????? #?????????? | | ????????#" ""## ################# #?????????? | | ??????????????# ########????????# #?????????? | | ??????????????# ?# #????###?# #?????????? | | ??????????????# ??# ######"### #?????????? | | ??????????????#???# "" # " #?????????? | | ??????????????????# "" # # #?????????? | | ??????????????????# "" + # #?????????? | | ??????????????????# S # # #?????????? | | ??????????????????# "" # """ # #?????????? | | ??????????????????# "" # Y" + +?????????? | | ??????????????????+ "" # """ # #?????????? | | ??????????????????# # # #?????????? | | ??????????????????# # # #?????????? | | ??????????????????####"############ #?????????? | | ?????????????????????# # #?????????? | | ?????????????????????# # #?????????? | | ?????????????????????# / #?????????? | | ?????????????????????# # #?????????? | | ?????????????????????# # #?????????? | +----------------------------------------------------+ Best States ------------- Heat Dissipation 71 Energy Generation 21 Energy Capacity 500 Matter Stores 300 Matter Capacity 300 Sight Range 22 Terrain Scan Range 24 Terrain Scan Density 135 Jamming Range 16 Cloak Strength 3 Power Amplification 20 Additional Mass Support 9 Base Temperature (-) 200 Armor Coverage 225 Core Shielding 40 Propulsion Shielding 66 Evasion (%) 73 Targeting Accuracy 8 Melee Accuracy 14 Target Analysis 8 Armor Integrity Analysis 30 Recoil Reduction 4 Energy Filtering 30 Particle Charging 25 Salvage Targeting 2 Offensive Hacking 49 Defensive Hacking 45 Item Schematics ----------------- Xenon Bombardment Thruster | -6/Factory | Scanalyzed Matter Compressor | -6/Zion | Archive Imp. Plasma Cutter | -6/Zion | Archive Lyr. Medium Armor Plating | -6/Zion | Archive Imp. Dynamic Insulation System | -6/Zion | Archive Hvy. Flak Cannon | -6/Zion | Archive Point Defense System | -6/Zion | Archive Flexi-carbon Leg | -6/Zion | Archive Adv. Focal Shield | -6/Zion | Archive Matter Neutralizer | -6/Zion | Archive Angular Momentum Engine | -6/Zion | Archive Imp. Weapon Cycler | -6/Zion | Archive Imp. Transmission Jammer | -6/Zion | Archive EM Disruption Field | -6/Zion | Archive Fission Core | -6/Zion | Archive Adv. Shield Generator | -6/Zion | Archive Nuclear Pulse Array | -4/Factory | Hacked Impulse Thruster Array | -4/Factory | Hacked Enh. Nova Cannon | -4/Factory | Hacked Hvy. Shock Bomb Launcher | -4/Factory | Scanalyzed Com. Wheel | -4/Factory | Extracted Imp. Cryofiber Web | -4/Factory | Extracted Adv. Hacking Suite | -4/Factory | Extracted Adv. Power Amplifier | -4/Factory | Extracted Hvy. Mass Driver | -4/Factory | Extracted Matter Filter | -4/Factory | Extracted Imp. Heavy Armor Plating | -4/Factory | Extracted Com. Matter Pod | -4/Factory | Extracted Railgun | -4/Factory | Extracted Dispersion Rifle | -4/Factory | Extracted Assault Drone Bay | -4/Zhirov | Free Exp. Heat Sink | -4/Zhirov | Free Exp. Optical Array | -4/Zhirov | Free Imp. Arc Thrower | -4/Zhirov | Free Robot Schematics ------------------ A-02 Transporter | -6/Zion | Archive L-41 Fighter | -6/Zion | Archive S-27 Virus | -6/Zion | Archive Fabricated ------------ Exp. System Shield | x1 | -4/Factory | Preloaded Alien Tech Used ----------------- None Achievements -------------- Can't Catch Me Charge!!! Exterminator The Science Guy Challenges ------------ None Game ------ Seed SeismicAdvancedTube Manual? 0 Play Time 03:26:25 Cumulative 45.1 hours Start 2025.03.02 @ 02:21:20 End 2025.03.03 @ 21:27:58 Sessions 7 Manual Loads 0 Difficulty Rogue Special Mode None Game No. 53 Rogue 53 Adventurer 0 Explorer 0 Win Type - Total 0 Types 0/0/0/0/0/0/0/0/0 Lore% 32 Gallery% 39 Achievement% 30 Wizard Run 0 Options --------- Layout 0 ASCII 0 Keyboard 1 Movement Numpad Keybinds 0 Fullscreen 1 Font 18/CogWide Map View 76x50 Zoom Use 0% Tactical HUD 1 Map Filters NONE Filters NONE Steam 1 RUN: a8c250e9-30b6-421e-8083-7e5713dfd2d6